fUST/lending_fUST_20260118
["ID","MTS","AMOUNT","RATE_DAILY","PERIOD"]
[402401761,1768672261071,-500.0,0.0001726,3]
[402401763,1768672261081,-557.77,0.0001726,3]
[402401765,1768672261090,-587.98,0.0001726,3]
[402401767,1768672261098,-500.0,0.0001726,3]
[402401769,1768672261107,-1205.99,0.0001726,3]
[402401771,1768672261118,-2066.65,0.0001726,3]
[402401773,1768672261128,-500.0,0.0001726,3]
[402401775,1768672261138,-635.32816024,0.0001726,3]
[402401777,1768672261147,-500.0,0.0001726,3]
[402401779,1768672261158,-733.5,0.0001726,3]
[402401781,1768672261168,-650.21,0.0001726,3]
[402401783,1768672261178,-613.38,0.0001726,3]
[402401785,1768672261186,-500.0,0.0001726,3]
[402401787,1768672261196,-835.5,0.0001726,3]
[402401789,1768672261205,-500.0,0.0001726,3]
[402401791,1768672261214,-579.4,0.0001726,3]
[402401793,1768672261224,-573.28,0.0001726,3]
[402401795,1768672261233,-500.0,0.0001726,3]
[402401797,1768672261243,-500.0,0.0001726,3]
[402401799,1768672261252,-743.96,0.0001726,3]
[402401800,1768672261261,-1136.31,0.0001726,3]
[402401802,1768672261271,-500.0,0.0001726,3]
[402401805,1768672261283,-628.63,0.0001726,3]
[402401806,1768672261293,-1068.17,0.0001726,3]
[402401808,1768672261302,-936.87,0.0001726,3]
[402401810,1768672261311,-500.0,0.0001726,3]
[402401812,1768672261321,-500.0,0.0001726,3]
[402401814,1768672261329,-500.0,0.0001726,3]
[402401816,1768672261339,-500.0,0.0001726,3]
[402401818,1768672261349,-549.98,0.0001726,3]
[402401820,1768672261361,-500.0,0.0001726,3]
[402401822,1768672261370,-834.61,0.0001726,3]
[402401824,1768672261381,-564.82,0.0001726,3]
[402401826,1768672261390,-500.0,0.0001726,3]
[402401828,1768672261400,-554.04,0.0001726,3]
[402401830,1768672261410,-500.0,0.0001726,3]
[402401832,1768672261420,-500.0,0.0001726,3]
[402401834,1768672261429,-500.0,0.0001726,3]
[402401836,1768672261438,-11730.58,0.0001726,3]
[402401838,1768672261448,-500.0,0.0001726,3]
[402401840,1768672261458,-500.0,0.0001726,3]
[402401842,1768672261467,-500.0,0.0001726,3]
[402401844,1768672261477,-500.0,0.0001726,3]
[402401846,1768672261486,-500.0,0.0001726,3]
[402401848,1768672261496,-500.0,0.0001726,3]
[402401850,1768672261505,-500.0,0.0001726,3]
[402401852,1768672261514,-553.24,0.0001726,3]
[402401854,1768672261524,-661.23,0.0001726,3]
[402401856,1768672261533,-500.0,0.0001726,3]
[402401858,1768672261543,-1280.11,0.0001726,3]
[402401859,1768672261552,-635.13,0.0001726,3]
[402401861,1768672261561,-500.0,0.0001726,3]
[402401863,1768672261570,-500.0,0.0001726,3]
[402401865,1768672261580,-500.0,0.0001726,3]
[402401867,1768672261589,-1044.17,0.0001726,3]
[402401869,1768672261598,-909.68,0.0001726,3]
[402401871,1768672261608,-500.0,0.0001726,3]
[402401874,1768672261617,-500.0,0.0001726,3]
[402401876,1768672261627,-500.0,0.0001726,3]
[402401878,1768672261636,-730.73,0.0001726,3]
[402401880,1768672261645,-500.0,0.0001726,3]
[402401882,1768672261655,-500.0,0.0001726,3]
[402401884,1768672261663,-790.59,0.0001726,3]
[402401886,1768672261673,-500.0,0.0001726,3]
[402401887,1768672261682,-500.0,0.0001726,3]
[402401890,1768672261691,-500.0,0.0001726,3]
[402401891,1768672261700,-2112.69,0.0001726,3]
[402401893,1768672261710,-511.42,0.0001726,3]
[402401895,1768672261719,-500.0,0.0001726,3]
[402401897,1768672261728,-535.75,0.0001726,3]
[402401899,1768672261738,-500.0,0.0001726,3]
[402401901,1768672261747,-1257.86,0.0001726,3]
[402401903,1768672261757,-500.0,0.0001726,3]
[402401905,1768672261767,-500.0,0.0001726,3]
[402401907,1768672261777,-564.16,0.0001726,3]
[402401909,1768672261787,-500.0,0.0001726,3]
[402401911,1768672261797,-500.0,0.0001726,3]
[402401914,1768672261807,-500.0,0.0001726,3]
[402401916,1768672261817,-793.71,0.0001726,3]
[402401917,1768672261826,-1060.23,0.0001726,3]
[402401919,1768672261835,-753.83,0.0001726,3]
[402401921,1768672261844,-500.0,0.0001726,3]
[402401923,1768672261853,-1178.18,0.0001726,3]
[402401925,1768672261862,-500.0,0.0001726,3]
[402401927,1768672261872,-819.72,0.0001726,3]
[402401929,1768672261881,-500.0,0.0001726,3]
[402401931,1768672261890,-500.0,0.0001726,3]
[402401933,1768672261898,-500.0,0.0001726,3]
[402401935,1768672261907,-500.0,0.0001726,3]
[402401937,1768672261917,-641.91,0.0001726,3]
[402401938,1768672261926,-500.0,0.0001726,3]
[402401939,1768672261935,-500.0,0.0001726,3]
[402401940,1768672261944,-990.33,0.0001726,3]
[402401941,1768672261953,-500.0,0.0001726,3]
[402401942,1768672261963,-500.0,0.0001726,3]
[402401943,1768672261973,-500.0,0.0001726,3]
[402401944,1768672261982,-500.0,0.0001726,3]
[402401945,1768672261991,-500.0,0.0001726,3]
[402401946,1768672262000,-500.0,0.0001726,3]
[402401947,1768672262010,-500.0,0.0001726,3]
[402401948,1768672262019,-500.0,0.0001726,3]
[402401949,1768672262029,-1220.19,0.0001726,3]
[402401950,1768672262038,-1328.95,0.0001726,3]
[402401951,1768672262048,-500.0,0.0001726,3]
[402401952,1768672262058,-500.0,0.0001726,3]
[402401953,1768672262068,-525.66,0.0001726,3]
[402401954,1768672262077,-858.37,0.0001726,3]
[402401955,1768672262089,-500.0,0.0001726,3]
[402401956,1768672262098,-500.0,0.0001726,3]
[402401957,1768672262108,-500.0,0.0001726,3]
[402401958,1768672262118,-500.0,0.0001726,3]
[402401959,1768672262127,-900.31,0.0001726,3]
[402401960,1768672262138,-1642.54,0.0001726,3]
[402401961,1768672262149,-764.57,0.0001726,3]
[402401962,1768672262159,-500.0,0.0001726,3]
[402401963,1768672262168,-548.54,0.0001726,3]
[402401964,1768672262179,-660.54,0.0001726,3]
[402401965,1768672262189,-500.0,0.0001726,3]
[402401966,1768672262199,-1141.74,0.0001726,3]
[402401967,1768672262209,-1017.41,0.0001726,3]
[402401968,1768672262219,-500.0,0.0001726,3]
[402401969,1768672262228,-500.0,0.0001726,3]
[402401970,1768672262237,-1019.73,0.0001726,3]
[402401971,1768672262247,-500.0,0.0001726,3]
[402401972,1768672262256,-500.0,0.0001726,3]
[402401973,1768672262265,-1637.47,0.0001726,3]
[402401974,1768672262275,-915.65,0.0001726,3]
[402401975,1768672262287,-1280.75,0.0001726,3]
[402401976,1768672262295,-500.0,0.0001726,3]
[402401977,1768672262303,-500.0,0.0001726,3]
[402401978,1768672262311,-702.07,0.0001726,3]
[402401979,1768672262320,-500.0,0.0001726,3]
[402401980,1768672262328,-500.0,0.0001726,3]
[402401981,1768672262337,-342.33666613,0.0001726,3]
[402401982,1768672262347,-605.46,0.0001726,3]
[402401983,1768672262357,-1184.2,0.0001726,3]
[402401984,1768672262367,-500.0,0.0001726,3]
[402401985,1768672262377,-500.0,0.0001726,3]
[402401986,1768672262386,-500.0,0.0001726,3]
[402401987,1768672262396,-933.56,0.0001726,3]
[402401988,1768672262405,-1078.02,0.0001726,3]
[402401989,1768672262415,-500.0,0.0001726,3]
[402401990,1768672262424,-500.0,0.0001726,3]
[402401991,1768672262434,-490.09113196,0.0001726,3]
[402401992,1768672262443,-2148.56,0.0001726,3]
[402401993,1768672262453,-583.23,0.0001726,3]
[402401994,1768672262464,-500.0,0.0001726,3]
[402401995,1768672262474,-500.0,0.0001726,3]
[402401996,1768672262483,-500.0,0.0001726,3]
[402401997,1768672262491,-729.58,0.0001726,3]
[402401998,1768672262499,-212.75124021,0.0001726,3]
[402401999,1768672262508,-500.0,0.0001726,2]
[402402000,1768672262517,-1609.54,0.0001726,3]
[402402001,1768672262525,-2656.16,0.0001726,3]
[402402002,1768672262533,-1160.4,0.0001726,3]
[402402003,1768672262543,-1132.67,0.0001726,3]
[402402004,1768672262552,-500.0,0.0001726,3]
[402402005,1768672262561,-500.0,0.0001726,3]
[402402006,1768672262571,-795.11,0.0001726,3]
[402402007,1768672262580,-500.0,0.0001726,3]
[402402008,1768672262590,-500.0,0.0001726,3]
[402402009,1768672262599,-1232.18,0.0001726,3]
[402402010,1768672262609,-500.0,0.0001726,3]
[402402011,1768672262620,-197.20286288,0.0001726,3]
[402402012,1768672262630,-815.62,0.0001726,3]
[402402013,1768672262639,-500.0,0.0001726,3]
[402402014,1768672262649,-500.0,0.0001726,3]
[402402015,1768672262658,-500.0,0.0001726,3]
[402402016,1768672262668,-1090.41,0.0001726,3]
[402402017,1768672262677,-500.0,0.0001726,3]
[402402018,1768672262687,-654.93,0.0001726,3]
[402402019,1768672262696,-500.0,0.0001726,3]
[402402020,1768672262706,-763.75,0.0001726,3]
[402402021,1768672262716,-1185.44,0.0001726,3]
[402402022,1768672262725,-500.0,0.0001726,2]
[402402023,1768672262734,-224.9414097,0.00017307,2]
[402402024,1768672262744,-173.5,0.00017335,2]
[402402025,1768672262753,-5000.0,0.00017412,2]
[402402026,1768672262763,-168.0,0.00017463,2]
[402402027,1768672262773,-500.0,0.00017534,3]
[402402028,1768672262783,-500.0,0.00017534,3]
[402402029,1768672262792,-500.0,0.00017534,3]
[402402030,1768672262803,-500.0,0.00017534,3]
[402402031,1768672262812,-1033.84,0.00017534,3]
[402402032,1768672262822,-1070.01,0.00017534,3]
[402402033,1768672262831,-500.0,0.00017534,3]
[402402034,1768672262841,-500.0,0.00017534,3]
[402402035,1768672262851,-500.0,0.00017534,3]
[402402036,1768672262861,-500.0,0.00017534,3]
[402402037,1768672262870,-796.7,0.00017534,3]
[402402038,1768672262880,-618.49,0.00017534,3]
[402402039,1768672262890,-500.0,0.00017534,3]
[402402040,1768672262900,-1270.86,0.00017534,3]
[402402041,1768672262910,-500.0,0.00017534,3]
[402402043,1768672262920,-500.0,0.00017534,3]
[402402045,1768672262930,-500.0,0.00017534,3]
[402402047,1768672262940,-813.64,0.00017534,3]
[402402049,1768672262950,-500.0,0.00017534,3]
[402402051,1768672262960,-500.0,0.00017534,3]
[402402053,1768672262970,-500.0,0.00017534,3]
[402402055,1768672262981,-561.64,0.00017534,3]
[402402056,1768672262990,-815.39,0.00017534,3]
[402402058,1768672263000,-500.0,0.00017534,3]
[402402060,1768672263010,-1185.99,0.00017534,3]
[402402061,1768672263019,-500.0,0.00017534,3]
[402402062,1768672263030,-567.48,0.00017534,3]
[402402063,1768672263040,-500.0,0.00017534,3]
[402402064,1768672263049,-500.0,0.00017534,3]
[402402065,1768672263058,-500.0,0.00017534,3]
[402402066,1768672263068,-500.0,0.00017534,3]
[402402067,1768672263077,-649.06,0.00017534,3]
[402402068,1768672263086,-500.0,0.00017534,3]
[402402069,1768672263096,-565.36,0.00017534,3]
[402402070,1768672263110,-500.0,0.00017534,3]
[402402071,1768672263120,-500.0,0.00017534,3]
[402402072,1768672263130,-844.87,0.00017534,3]
[402402073,1768672263140,-1175.77,0.00017534,3]
[402402075,1768672263150,-500.0,0.00017534,3]
[402402077,1768672263160,-500.0,0.00017534,3]
[402402079,1768672263169,-227.29636774,0.00017534,3]
[402402081,1768672263179,-500.0,0.00017534,3]
[402402083,1768672263189,-500.0,0.00017534,3]
[402402085,1768672263199,-1169.86,0.00017534,3]
[402402087,1768672263209,-500.0,0.00017534,3]
[402402089,1768672263219,-602.7,0.00017534,3]
[402402091,1768672263230,-500.0,0.00017534,3]
[402402093,1768672263240,-500.0,0.00017534,3]
[402402095,1768672263250,-500.0,0.00017534,3]
[402402097,1768672263260,-500.0,0.00017534,3]
[402402098,1768672263270,-500.0,0.00017534,3]
[402402100,1768672263282,-500.0,0.00017534,3]
[402402102,1768672263292,-500.0,0.00017534,3]
[402402104,1768672263302,-500.0,0.00017534,3]
[402402106,1768672263312,-605.61,0.00017534,3]
[402402108,1768672263324,-500.0,0.00017534,3]
[402402110,1768672263334,-514.68,0.00017534,3]
[402402112,1768672263345,-500.0,0.00017534,3]
[402402114,1768672263358,-500.0,0.00017534,3]
[402402116,1768672263368,-637.45,0.00017534,3]
[402402118,1768672263378,-595.27,0.00017534,3]
[402402120,1768672263388,-622.37,0.00017534,3]
[402402122,1768672263398,-510.29,0.00017534,3]
[402402124,1768672263407,-306.5416069,0.00017534,3]
[402402126,1768672263417,-747.18,0.00017534,3]
[402402128,1768672263427,-500.0,0.00017534,3]
[402402130,1768672263437,-500.0,0.00017534,3]
[402402132,1768672263447,-947.56,0.00017534,3]
[402402134,1768672263457,-756.15,0.00017534,3]
[402402136,1768672263467,-500.0,0.00017534,3]
[402402138,1768672263477,-534.17,0.00017534,3]
[402402140,1768672263487,-751.4,0.00017534,3]
[402402142,1768672263497,-500.0,0.00017534,3]
[402402144,1768672263507,-832.93,0.00017534,3]
[402402146,1768672263518,-537.8,0.00017534,3]
[402402148,1768672263527,-500.0,0.00017534,3]
[402402150,1768672263537,-774.1,0.00017534,3]
[402402152,1768672263547,-500.0,0.00017534,3]
[402402154,1768672263557,-1081.35,0.00017534,3]
[402402155,1768672263567,-500.0,0.00017534,3]
[402402157,1768672263578,-500.0,0.00017534,3]
[402402159,1768672263588,-500.0,0.00017534,3]
[402402161,1768672263598,-500.0,0.00017534,3]
[402402163,1768672263608,-864.76,0.00017534,3]
[402402165,1768672263617,-500.0,0.00017534,3]
[402402167,1768672263627,-1077.83,0.00017534,3]
[402402169,1768672263637,-500.0,0.00017534,3]
[402402171,1768672263646,-500.0,0.00017534,3]
[402402173,1768672263656,-988.32,0.00017534,3]
[402402175,1768672263666,-905.85,0.00017534,3]
[402402177,1768672263676,-953.25120035,0.00017534,2]
[402402179,1768672263685,-500.0,0.00017534,3]
[402402181,1768672263695,-500.0,0.00017534,3]
[402402183,1768672263705,-500.0,0.00017534,3]
[402402185,1768672263714,-1338.2,0.00017534,3]
[402402187,1768672263724,-557.94,0.00017534,3]
[402402189,1768672263734,-500.0,0.00017534,3]
[402402192,1768672263744,-500.0,0.00017534,3]
[402402193,1768672263754,-500.0,0.00017534,3]
[402402195,1768672263764,-500.0,0.00017534,3]
[402402197,1768672263773,-954.03,0.00017534,3]
[402402199,1768672263782,-500.0,0.00017534,3]
[402402201,1768672263791,-500.0,0.00017534,3]
[402402203,1768672263800,-569.16,0.00017534,3]
[402402205,1768672263809,-500.0,0.00017534,3]
[402402207,1768672263818,-500.0,0.00017534,3]
[402402209,1768672263828,-500.0,0.00017534,3]
[402402211,1768672263838,-500.0,0.00017534,3]
[402402213,1768672263848,-529.3,0.00017534,3]
[402402215,1768672263858,-642.64,0.00017534,3]
[402402217,1768672263867,-652.9,0.00017534,3]
[402402219,1768672263879,-274.99372873,0.00017534,3]
[402402221,1768672263890,-500.0,0.00017534,3]
[402402223,1768672263899,-653.37,0.00017534,3]
[402402225,1768672263910,-1166.14,0.00017534,3]
[402402227,1768672263920,-500.0,0.00017534,3]
[402402229,1768672263930,-500.0,0.00017534,3]
[402402231,1768672263939,-500.0,0.00017534,3]
[402402233,1768672263950,-500.0,0.00017534,3]
[402402235,1768672263959,-500.0,0.00017534,3]
[402402237,1768672263970,-500.0,0.00017534,3]
[402402239,1768672263979,-587.61,0.00017534,3]
[402402241,1768672263989,-600.53,0.00017534,3]
[402402243,1768672263998,-885.65,0.00017534,3]
[402402245,1768672264009,-746.94,0.00017534,3]
[402402247,1768672264020,-1428.8,0.00017534,3]
[402402249,1768672264030,-500.0,0.00017534,3]
[402402251,1768672264040,-602.7,0.00017534,3]
[402402253,1768672264050,-500.0,0.00017534,3]
[402402255,1768672264060,-500.0,0.00017534,3]
[402402257,1768672264069,-505.27,0.00017534,3]
[402402259,1768672264078,-1280.76,0.00017534,3]
[402402261,1768672264088,-500.0,0.00017534,3]
[402402263,1768672264098,-1200.0,0.00017534,2]
[402402265,1768672264107,-633.08,0.00017534,3]
[402402267,1768672264117,-500.0,0.00017534,3]
[402402269,1768672264127,-735.44,0.00017534,3]
[402402271,1768672264136,-500.0,0.00017534,3]
[402402273,1768672264146,-500.0,0.00017534,3]
[402402275,1768672264155,-536.05,0.00017534,3]
[402402277,1768672264164,-500.0,0.00017534,3]
[402402279,1768672264173,-500.0,0.00017534,3]
[402402281,1768672264183,-500.0,0.00017534,3]
[402402283,1768672264194,-500.0,0.00017534,3]
[402402285,1768672264204,-742.56,0.00017534,3]
[402402287,1768672264214,-500.0,0.00017534,3]
[402402289,1768672264223,-1411.96,0.00017534,3]
[402402291,1768672264234,-811.82,0.00017534,3]
[402402293,1768672264244,-997.47,0.00017534,3]
[402402295,1768672264254,-500.0,0.00017534,3]
[402402297,1768672264265,-1358.94,0.00017534,3]
[402402299,1768672264274,-500.0,0.00017534,3]
[402402301,1768672264288,-683.61,0.00017534,3]
[402402303,1768672264298,-500.0,0.00017534,3]
[402402305,1768672264308,-500.0,0.00017534,3]
[402402307,1768672264318,-500.0,0.00017534,3]
[402402309,1768672264329,-705.55,0.00017534,3]
[402402311,1768672264339,-716.4,0.00017534,3]
[402402313,1768672264351,-500.0,0.00017534,3]
[402402315,1768672264363,-500.0,0.00017534,3]
[402402317,1768672264373,-729.97,0.00017534,3]
[402402319,1768672264383,-500.0,0.00017534,3]
[402402321,1768672264394,-520.99,0.00017534,3]
[402402323,1768672264404,-1532.82,0.00017534,3]
[402402325,1768672264414,-500.0,0.00017534,3]
[402402327,1768672264423,-500.0,0.00017534,3]
[402402329,1768672264433,-711.45,0.00017534,3]
[402402331,1768672264442,-762.94,0.00017534,3]
[402402333,1768672264452,-885.65,0.00017534,3]
[402402335,1768672264462,-1015.5,0.00017534,3]
[402402337,1768672264471,-500.0,0.00017534,3]
[402402339,1768672264481,-500.0,0.00017534,3]
[402402341,1768672264491,-904.58,0.00017534,3]
[402402343,1768672264501,-1533.96,0.00017534,3]
[402402345,1768672264510,-776.21,0.00017534,3]
[402402347,1768672264520,-500.0,0.00017534,3]
[402402349,1768672264529,-500.0,0.00017534,3]
[402402351,1768672264538,-845.11,0.00017534,3]
[402402353,1768672264548,-500.0,0.00017534,3]
[402402381,1768672264558,-881.13,0.00017534,3]
[402402384,1768672264818,-452.01774869,0.00017534,3]
[402402386,1768672264829,-527.98947312,0.00017534,3]
[402402388,1768672264838,-500.0,0.00017534,3]
[402402390,1768672264847,-500.0,0.00017534,3]
[402402392,1768672264856,-500.0,0.00017534,3]
[402402394,1768672264865,-500.0,0.00017534,3]
[402402396,1768672264875,-810.57,0.00017534,3]
[402402398,1768672264885,-1412.17,0.00017534,3]
[402402400,1768672264896,-802.89,0.00017534,3]
[402402402,1768672264906,-500.0,0.00017534,3]
[402402404,1768672264915,-500.0,0.00017534,3]
[402402406,1768672264925,-500.0,0.00017534,3]
[402402408,1768672264934,-686.71,0.00017534,3]
[402402410,1768672264943,-727.6,0.00017534,3]
[402402412,1768672264953,-500.0,0.00017534,3]
[402402414,1768672264962,-540.93,0.00017534,3]
[402402416,1768672264971,-500.0,0.00017534,3]
[402402418,1768672264981,-500.0,0.00017534,3]
[402402420,1768672264991,-500.0,0.00017534,3]
[402402422,1768672265000,-500.0,0.00017534,3]
[402402424,1768672265009,-500.0,0.00017534,3]
[402402425,1768672265019,-500.0,0.00017534,3]
[402402427,1768672265028,-716.95,0.00017534,3]
[402402429,1768672265037,-355.84576116,0.00017534,3]
[402402431,1768672265047,-500.0,0.00017534,3]
[402402433,1768672265057,-727.17,0.00017534,3]
[402402435,1768672265066,-1357.3,0.00017534,3]
[402402437,1768672265075,-500.0,0.00017534,3]
[402402439,1768672265084,-500.0,0.00017534,3]
[402402441,1768672265093,-500.0,0.00017534,3]
[402402443,1768672265103,-1149.14,0.00017534,3]
[402402445,1768672265112,-500.0,0.00017534,3]
[402402447,1768672265122,-607.11,0.00017534,3]
[402402449,1768672265132,-500.0,0.00017534,3]
[402402451,1768672265141,-500.0,0.00017534,3]
[402402453,1768672265151,-808.06,0.00017534,3]
[402402455,1768672265160,-772.15,0.00017534,3]
[402402457,1768672265169,-819.52,0.00017534,3]
[402402459,1768672265179,-500.0,0.00017534,3]
[402402461,1768672265189,-500.0,0.00017534,3]
[402402463,1768672265198,-500.0,0.00017534,3]
[402402464,1768672265207,-500.0,0.00017534,3]
[402402465,1768672265216,-500.0,0.00017534,3]
[402402467,1768672265226,-1028.09,0.00017534,3]
[402402469,1768672265235,-500.0,0.00017534,3]
[402402471,1768672265244,-500.0,0.00017534,3]
[402402473,1768672265254,-837.9,0.00017534,3]
[402402475,1768672265264,-500.0,0.00017534,3]
[402402477,1768672265274,-1136.48,0.00017534,3]
[402402479,1768672265289,-500.0,0.00017534,3]
[402402481,1768672265299,-500.0,0.00017534,3]
[402402483,1768672265309,-599.08,0.00017534,3]
[402402485,1768672265318,-1593.44,0.00017534,3]
[402402487,1768672265329,-272.32832549,0.00017534,3]
[402402489,1768672265339,-500.0,0.00017534,3]
[402402491,1768672265349,-500.0,0.00017534,3]
[402402493,1768672265365,-500.0,0.00017534,3]
[402402495,1768672265382,-500.0,0.00017534,3]
[402402497,1768672265392,-500.0,0.00017534,3]
[402402499,1768672265402,-306.16209203,0.00017534,3]
[402402501,1768672265411,-1254.11,0.00017534,3]
[402402503,1768672265420,-500.0,0.00017534,3]
[402402505,1768672265430,-500.0,0.00017534,3]
[402402506,1768672265440,-500.0,0.00017534,3]
[402402507,1768672265448,-500.0,0.00017534,3]
[402402508,1768672265458,-500.0,0.00017534,3]
[402402509,1768672265467,-1755.19,0.00017534,3]
[402402510,1768672265478,-631.38,0.00017534,3]
[402402511,1768672265487,-514.21,0.00017534,3]
[402402512,1768672265497,-1107.65,0.00017534,3]
[402402513,1768672265507,-500.0,0.00017534,3]
[402402514,1768672265516,-500.0,0.00017534,3]
[402402515,1768672265526,-500.0,0.00017534,3]
[402402516,1768672265536,-1185.83,0.00017534,3]
[402402517,1768672265546,-1000.17,0.00017534,3]
[402402518,1768672265556,-500.0,0.00017534,3]
[402402519,1768672265567,-500.0,0.00017534,3]
[402402520,1768672265577,-500.0,0.00017534,3]
[402402521,1768672265586,-1353.46,0.00017534,3]
[402402522,1768672265596,-500.0,0.00017534,3]
[402402523,1768672265606,-500.0,0.00017534,3]
[402402524,1768672265615,-526.8,0.00017534,3]
[402402525,1768672265624,-1772.05,0.00017534,3]
[402402526,1768672265634,-638.11,0.00017534,3]
[402402527,1768672265644,-500.0,0.00017534,3]
[402402528,1768672265654,-1230.93,0.00017534,3]
[402402529,1768672265663,-500.0,0.00017534,3]
[402402530,1768672265672,-526.01,0.00017534,3]
[402402531,1768672265681,-579.07,0.00017534,3]
[402402532,1768672265693,-500.0,0.00017534,3]
[402402533,1768672265702,-1439.94,0.00017534,3]
[402402534,1768672265711,-1401.58,0.00017534,3]
[402402535,1768672265720,-500.0,0.00017534,3]
[402402536,1768672265729,-500.0,0.00017534,3]
[402402537,1768672265738,-500.0,0.00017534,3]
[402402538,1768672265748,-221.78015964,0.00017534,3]
[402402539,1768672265757,-1620.39,0.00017534,3]
[402402540,1768672265766,-500.0,0.00017534,3]
[402402541,1768672265775,-500.0,0.00017534,3]
[402402542,1768672265784,-500.0,0.00017534,3]
[402402543,1768672265792,-500.0,0.00017534,3]
[402402544,1768672265802,-500.0,0.00017534,3]
[402402545,1768672265810,-500.0,0.00017534,3]
[402402546,1768672265819,-655.94,0.00017534,3]
[402402547,1768672265828,-755.72,0.00017534,3]
[402402548,1768672265837,-500.0,0.00017534,3]
[402402549,1768672265846,-500.0,0.00017534,3]
[402402550,1768672265854,-6173.67,0.00017534,3]
[402402551,1768672265863,-500.0,0.00017534,3]
[402402552,1768672265872,-677.04,0.00017534,3]
[402402553,1768672265881,-500.0,0.00017534,3]
[402402554,1768672265891,-500.0,0.00017534,3]
[402402555,1768672265900,-1349.74,0.00017534,3]
[402402556,1768672265909,-500.0,0.00017534,3]
[402402557,1768672265919,-715.28,0.00017534,3]
[402402558,1768672265929,-785.23,0.00017534,3]
[402402559,1768672265938,-500.0,0.00017534,3]
[402402560,1768672265948,-500.0,0.00017534,3]
[402402561,1768672265958,-1079.91,0.00017534,3]
[402402562,1768672265968,-500.0,0.00017534,3]
[402402563,1768672265977,-1224.26,0.00017534,3]
[402402564,1768672265987,-1116.8,0.00017534,3]
[402402565,1768672265996,-788.6,0.00017534,3]
[402402566,1768672266006,-618.2,0.00017534,3]
[402402567,1768672266016,-500.0,0.00017534,3]
[402402568,1768672266026,-500.0,0.00017534,3]
[402402569,1768672266036,-500.0,0.00017534,3]
[402402570,1768672266045,-963.95,0.00017534,3]
[402402571,1768672266055,-500.0,0.00017534,3]
[402402572,1768672266064,-500.0,0.00017534,3]
[402402573,1768672266074,-557.77,0.00017534,3]
[402402574,1768672266084,-587.98,0.00017534,3]
[402402575,1768672266094,-500.0,0.00017534,3]
[402402576,1768672266103,-1205.99,0.00017534,3]
[402402577,1768672266112,-2066.65,0.00017534,3]
[402402578,1768672266121,-500.0,0.00017534,3]
[402402579,1768672266131,-500.0,0.00017534,3]
[402402580,1768672266140,-733.5,0.00017534,3]
[402402581,1768672266149,-650.21,0.00017534,3]
[402402582,1768672266159,-613.38,0.00017534,3]
[402402583,1768672266169,-500.0,0.00017534,3]